[Event "Susha Chess Rapid 2022"]
[Site "Shusha"]
[Date "2022.09.23"]
[Round "8.4"]
[White "Durarbayli, Vasif"]
[Black "Guseinov, Gadir"]
[Result "1-0"]
[ECO "B40"]
[WhiteElo "2628"]
[BlackElo "2661"]
[Annotator "TA"]
[PlyCount "79"]
[EventDate "2022.09.21"]
[EventType "tourn"]
[EventCountry "AZE"]
[SourceTitle "playchess.com"]
[Source "ChessBase"]
[SourceQuality "1"]
[TimeControl "900+10"]

{[%evp 15,79,0,25,-20,-1,-47,-28,-44,-51,-75,-52,-75,-48,-81,-77,-70,-56,-58,-38,-26,-55,-89,-47,-33,-45,-84,-29,-16,17,28,17,8,93,108,144,148,268,276,287,280,280,268,264,266,254,246,222,201,458,452,438,433,439,437,750,735,733,695,1055,972,2041,2022,1710,1625,1373,1272]} 1. e4 {[%emt 0:00:01]} c5 {[%emt 0:00:01]} 2. Nf3 {[%emt 0:00:01]} e6 {[%emt 0:00:01]} 3. d4 {[%emt 0:00:02]} cxd4 {[%emt 0:00:01]} 4. Nxd4 {[%emt 0:00:01]} Nf6 {[%emt 0:00:00]} 5. Nc3 {[%emt 0:00:04]} Nc6 {[%emt 0:00:01]} 6. Nxc6 {[%emt 0:00:05]} bxc6 {[%emt 0:00:01]} 7. e5 {[%emt 0:00:01]} Nd5 {[%emt 0:00:01]} 8. Ne4 {[%emt 0:00:01]} Bb7 {[%emt 0:00:01]} (8... Qc7 $5 {[%cal Rc7e5]}) 9. a3 $5 {[%emt 0:00:58][%mdl 4] Exploring less charted territory. B45: Sicilian Four Knights.} Qc7 {[%emt 0:02:35]} 10. f4 {[%emt 0:00:08]} (10. Qh5 $11 {deserves consideration.}) 10... c5 $1 $15 {[%emt 0:00:06][%cal Bc6c5,Bc5c4][%mdl 32]} 11. Qe2 {[%emt 0:02:56] [#] Black has an edge.} Qc6 $146 {[%emt 0:00:56][%cal Od5f4]} ({Predecessor:} 11... Be7 12. c4 Nb6 13. g3 Qc6 14. Bg2 Qa4 15. Nc3 Qa6 16. Nb5 Rc8 17. b3 Bc6 {1-0 (32) Nomin Erdene,D (2356)-Bertovic,M (2268) Novi Sad 2018}) 12. Nf2 {[%emt 0:00:58]} Nb6 {[%emt 0:01:04]} 13. Be3 {[%emt 0:00:18]} c4 {[%emt 0:00:22]} 14. h4 {[%emt 0:00:57]} Nd5 {[%emt 0:01:49]} 15. Rh3 {[%emt 0:00:06]} Rc8 {[%emt 0:00:40]} 16. h5 $1 {[%emt 0:01:48]} f5 {[%emt 0:00:54]} 17. exf6 {[%emt 0:00:12]} gxf6 {[%emt 0:00:06]} 18. h6 {[%emt 0:02:14]} Bd6 {[%emt 0:00:23] Threatens to win with ...c3.} 19. Ne4 {[%emt 0:01:44]} Be7 {[%emt 0:00:17]} 20. f5 {[%emt 0:00:50]} e5 {[%emt 0:00:45]} (20... Nxe3 $6 21. Rxe3 e5 22. O-O-O $11) (20... Rg8 $1 $17 21. Bd2 exf5 22. Qh5+ Kf8 23. Qxf5 Qe6 24. Qxe6 (24. Qxh7 $2 Nc3 $19) 24... dxe6) 21. Nc3 {[%emt 0:01:27]} ({Don't blunder} 21. Bxa7 $2 Nf4 22. Qf3 Nxh3 $19) (21. Qh5+ Kd8 22. O-O-O Nxe3 23. Rxe3 Qb6 $17) 21... Nxe3 {[%emt 0:00:44]} 22. Rxe3 {[%emt 0:00:06]} Rg8 {[%emt 0:03:27]} 23. O-O-O $1 {[%emt 0:00:19] Black must now prevent Re4.} Qc5 {[%emt 0:00:20]} (23... Qb6 $1 $11 {keeps the balance.}) 24. Qh5+ $1 $16 {[%emt 0:01:15] White now steadily converts the win.} ({Don't play} 24. Ne4 Qb6 25. Nc3 (25. Qd2 $2 d5 $19) 25... Ba8 $15) 24... Kf8 {[%emt 0:00:14] [#]} 25. Qh3 {[%emt 0:00:26] White is more active.} d5 {[%emt 0:01:06] [#]} (25... Rg5 $16 {keeps fighting.}) 26. Rg3 $1 $18 {[%emt 0:00:01]} d4 {[%emt 0:01:38]} 27. Rxg8+ {[%emt 0:00:09]} Kxg8 {[%emt 0:00:01]} 28. Qg3+ {[%emt 0:00:57]} Kf8 {[%emt 0:00:01]} 29. Be2 {[%emt 0:00:13][%cal Oe2h5,Bf1e2,Be2c4,Bc4d5][%mdl 32] Threatening mate with Bh5! The board is on fire.} Ke8 {[%emt 0:00:18]} 30. Qg8+ {[%emt 0:00:38]} Kd7 {[%emt 0:00:00]} 31. Qxh7 {[%emt 0:00:01] Hoping for Qg7.} Kc7 $2 {[%emt 0:00:41]} (31... Bc6) 32. Na4 {[%emt 0:00:10] White is clearly winning.} Qd6 {[%emt 0:00:02]} 33. Bxc4 {[%emt 0:00:16]} Bc6 {[%emt 0:00:53]} 34. Nc3 {[%emt 0:00:28]} Rb8 {[%emt 0:00:12] [#]} (34... Qc5 $142 35. Nd5+ Bxd5 36. Bxd5 Kb8) 35. Nd5+ $1 {[%emt 0:00:19][%mdl 512]} Bxd5 {[%emt 0:00:20]} (35... Kd7 36. Nb4) 36. Bxd5 {[%emt 0:00:01]} Rb5 {[%emt 0:00:25]} 37. Bc4 {[%emt 0:00:17]} Rc5 {[%emt 0:00:12]} 38. Qf7 {[%emt 0:00:01] aiming for h7.} Kb6 {[%emt 0:00:09]} 39. h7 {[%emt 0:00:08]} Rc8 {[%emt 0:00:08]} 40. Qg8 {[%emt 0:00:13] Weighted Error Value: White=0.09 (flawless) /Black=0.31} 1-0

[Event "Susha Chess Rapid 2022"]
[Site "Shusha"]
[Date "2022.09.23"]
[Round "8.5"]
[White "Yilmaz, Mustafa"]
[Black "Wang, Hao"]
[Result "0-1"]
[ECO "D38"]
[WhiteElo "2633"]
[BlackElo "2722"]
[Annotator "TA"]
[PlyCount "88"]
[EventDate "2022.09.21"]
[EventType "tourn"]
[EventCountry "AZE"]
[SourceTitle "playchess.com"]
[Source "ChessBase"]
[SourceQuality "1"]
[TimeControl "900+10"]

{[%evp 11,88,7,14,11,14,19,22,14,8,10,18,6,13,10,14,23,21,-4,-18,-9,22,0,0,0,0,0,0,-29,-38,-33,-25,-55,-37,-39,-39,-34,-30,-51,-50,-52,-45,-45,-28,-97,-102,-226,-228,-229,-232,-229,-208,-210,-206,-223,-214,-215,-215,-225,-229,-239,-239,-239,-239,-426,-426,-426,-426,-562,-562,-661,-648,-507,-435,-754,-690,-761,-736,-538,-439]} 1. d4 {[%emt 0:00:01]} Nf6 {[%emt 0:00:02]} 2. c4 {[%emt 0:00:02]} e6 {[%emt 0:00:01]} 3. Nf3 {[%emt 0:00:01]} d5 {[%emt 0:00:03]} 4. Nc3 {[%emt 0:00:02]} Bb4 {[%emt 0:00:02]} 5. Qa4+ {[%emt 0:00:15]} Nc6 {[%emt 0:00:02]} 6. e3 {[%emt 0:00:01]} O-O {[%emt 0:00:03]} 7. Qc2 {[%emt 0:00:02] D38: Queen's Gambit Declined: Ragozin Defence (4 Nf3 Bb4).} dxc4 {[%emt 0:00:18]} 8. Bxc4 {[%emt 0:00:09]} Bd6 {[%emt 0:00:02]} 9. O-O {[%emt 0:02:17] The position is equal.} e5 {[%emt 0:00:05]} 10. h3 {[%emt 0:00:15]} Bd7 {[%emt 0:00:21]} 11. Rd1 {[%emt 0:00:12]} Qc8 {[%emt 0:00:34][%cal Od7h3]} 12. dxe5 {[%emt 0:03:45]} Nxe5 {[%emt 0:00:02]} 13. Nxe5 {[%emt 0:00:01]} Bxe5 {[%emt 0:00:02] [#]} 14. f4 $146 {[%emt 0:00:55]} ({Predecessor:} 14. e4 Re8 15. f3 c6 16. Be3 Be6 17. Bb3 Bc7 18. Rd3 Bb6 19. Bxb6 axb6 20. Bxe6 Qxe6 {½-½ (40) Wang,Y (2730)-Bu,X (2723) Danzhou 2016}) 14... Bxc3 {[%emt 0:01:21]} 15. Qxc3 {[%emt 0:00:04]} Bc6 {[%emt 0:03:11]} 16. b3 {[%emt 0:01:13]} Qf5 {[%emt 0:00:06]} 17. Bb2 {[%emt 0:02:41]} Qg6 {[%emt 0:01:22][%csl Gc6][%cal Rg6g2] [#]} 18. Bf1 {[%emt 0:00:09]} Rfe8 {[%emt 0:00:11]} 19. Qa5 {[%emt 0:04:22] Against Nd5} Rxe3 {[%emt 0:01:49][%cal Oe3e2] ...Re2! is the strong threat.} 20. Qg5 $1 {[%emt 0:01:27]} Ree8 {[%emt 0:03:01]} 21. Rac1 {[%emt 0:00:27]} Qxg5 {[%emt 0:01:43]} (21... Ne4 $5 {[%cal Re4g5]} 22. Qxg6 hxg6 $15) 22. fxg5 {[%emt 0:00:01]} Ne4 {[%emt 0:00:02]} 23. h4 {[%emt 0:00:05]} Ng3 $36 {[%emt 0:00:02][%mdl 2048] Threatens to win with ...Ne2+. White is under pressure.} 24. Rc2 {[%emt 0:00:22] Prevents Ne2+.} Nf5 {[%emt 0:01:37] [#] White must now prevent ...Ne3.} 25. Rf2 {[%emt 0:00:11]} Ne3 {[%emt 0:00:12]} (25... Nxh4 $2 26. Bc4 Rf8 27. Rdf1 $18) 26. Rdd2 {[%emt 0:00:12]} Re4 {[%emt 0:00:18]} 27. Bd3 {[%emt 0:00:17]} (27. Be2 $11) 27... Rxh4 $17 {[%emt 0:00:15]} 28. Rde2 {[%emt 0:00:02] Loses the game.} (28. Bc1 $17 {might work better.}) 28... Nd1 $19 {[%emt 0:00:14]} 29. Rf5 {[%emt 0:00:17]} Nxb2 {[%emt 0:00:05]} 30. Rxb2 {[%emt 0:00:01]} Be4 {[%emt 0:00:19]} 31. Bxe4 {[%emt 0:00:09]} Rxe4 {[%emt 0:00:02][%mdl 4096] Endgame KRR-KRR} 32. Rd2 {[%emt 0:00:04]} Re7 {[%emt 0:00:03] Against Rd7} 33. Rfd5 {[%emt 0:00:05]} g6 {[%emt 0:00:05]} 34. b4 {[%emt 0:00:18]} a6 {[%emt 0:00:10]} 35. a4 {[%emt 0:00:15]} Kg7 {[%emt 0:00:16]} 36. Kh2 {[%emt 0:00:05]} Rae8 {[%emt 0:00:04]} 37. Rd7 $2 {[%emt 0:00:06]} (37. b5) 37... Rxd7 {[%emt 0:00:08] Black is clearly winning.} 38. Rxd7 {[%emt 0:00:02] KR-KR} Re4 {[%emt 0:00:01]} 39. Rxc7 {[%emt 0:00:15]} Rxb4 {[%emt 0:00:02]} 40. Kg3 {[%emt 0:00:02]} a5 {[%emt 0:00:12]} 41. Kf3 {[%emt 0:00:30]} b6 {[%emt 0:00:03]} 42. Rb7 {[%emt 0:00:02]} (42. Rc6 $142) 42... h6 {[%emt 0:00:03]} 43. gxh6+ {[%emt 0:00:08]} Kxh6 {[%emt 0:00:02]} 44. Kg3 {[%emt 0:00:29]} Kg5 {[%emt 0:00:05] Weighted Error Value: White=0.33/Black=0.03 (flawless)} 0-1

[Event "Susha Chess Rapid 2022"]
[Site "Shusha"]
[Date "2022.09.23"]
[Round "9.1"]
[White "Wang, Hao"]
[Black "Radjabov, Teimour"]
[Result "1/2-1/2"]
[ECO "C67"]
[WhiteElo "2722"]
[BlackElo "2747"]
[Annotator "TA"]
[PlyCount "57"]
[EventDate "2022.09.21"]
[EventType "tourn"]
[EventCountry "AZE"]
[SourceTitle "playchess.com"]
[Source "ChessBase"]
[SourceQuality "1"]
[TimeControl "900+10"]

{[%evp 18,57,22,22,29,11,13,19,23,28,23,15,24,10,13,13,13,9,9,18,29,19,47,32,35,3,2,6,17,0,0,0,0,0,0,0,0,0,0,0,0,0]} 1. e4 {[%emt 0:00:02]} e5 {[%emt 0:00:05]} 2. Nf3 {[%emt 0:00:02]} Nc6 {[%emt 0:00:01]} 3. Bb5 {[%emt 0:00:02]} Nf6 {[%emt 0:00:01]} 4. O-O {[%emt 0:00:02][%cal Bh1f1,Bf1e1,Be1e5][%mdl 32]} Nxe4 {[%emt 0:00:03]} 5. Re1 {[%emt 0:00:01]} Nd6 {[%emt 0:00:02]} 6. Nxe5 {[%emt 0:00:02]} Be7 {[%emt 0:00:01][%cal Bf8e7,Be7f6,Bf6d4][%mdl 32]} 7. Bf1 {[%emt 0:00:03]} Nxe5 {[%emt 0:00:02]} 8. Rxe5 {[%emt 0:00:02]} O-O {[%emt 0:00:02]} 9. d4 {[%emt 0:00:02]} Bf6 {[%emt 0:00:03]} 10. Re1 {[%emt 0:00:02]} Re8 {[%emt 0:00:02] C67: Ruy Lopez: Berlin Defence: 4 0-0 Nxe4.} 11. Bf4 {[%emt 0:00:20]} Rxe1 {[%emt 0:01:33]} 12. Qxe1 {[%emt 0:00:01]} Bxd4 {[%emt 0:00:22]} 13. Bxd6 {[%emt 0:00:05]} cxd6 {[%emt 0:00:03]} 14. Nc3 {[%emt 0:00:03]} Be5 {[%emt 0:07:40]} 15. Qe4 {[%emt 0:03:10] [#] Black must now prevent Re1.} Bxc3 $146 {[%emt 0:01:50]} ({Predecessor:} 15... Rb8 16. Rd1 Bxc3 17. bxc3 b6 18. Rxd6 Bb7 19. Qf5 Bc6 20. Bd3 g6 21. Qf4 Qf8 {½-½ (48) Korinek,J (1815)-Moreira,C (1677) LSS email 2014}) 16. bxc3 {[%emt 0:00:02] Threatening Re1.} d5 $1 {[%emt 0:00:01]} 17. Qxd5 {[%emt 0:00:05]} d6 {[%emt 0:00:01]} 18. Re1 {[%emt 0:01:19]} Be6 {[%emt 0:00:35]} 19. Qxb7 {[%emt 0:00:12]} Qc8 {[%emt 0:00:08]} 20. Qe4 {[%emt 0:03:25]} Rb8 {[%emt 0:00:32]} 21. Bd3 {[%emt 0:00:12]} g6 {[%emt 0:00:08] The position is equal.} 22. c4 {[%emt 0:00:04]} Qc5 {[%emt 0:00:26]} 23. Qf4 {[%emt 0:01:02]} Qb4 {[%emt 0:01:14]} 24. Kf1 {[%emt 0:01:07]} Rc8 {[%emt 0:00:15]} 25. Qf6 {[%emt 0:04:33]} Bxc4 {[%emt 0:01:04]} 26. h4 $1 {[%emt 0:00:04]} h5 {[%emt 0:00:48]} 27. g3 {[%emt 0:00:02]} Bxd3+ {[%emt 0:01:12]} ({But not} 27... Bxa2 {[#]} 28. Bxg6 $1 Bc4+ 29. Bd3 $16) 28. cxd3 {[%emt 0:00:02]} Qa3 {[%emt 0:00:21][%csl LRa2,LRd3]} 29. Qd4 {[%emt 0:00:12] Weighted Error Value: White=0.04 (flawless) /Black=0.04 (flawless)} 1/2-1/2

[Event "Susha Chess Rapid 2022"]
[Site "Shusha"]
[Date "2022.09.23"]
[Round "9.2"]
[White "Maghsoodloo, Parham"]
[Black "Yilmaz, Mustafa"]
[Result "1-0"]
[ECO "C88"]
[WhiteElo "2721"]
[BlackElo "2633"]
[Annotator "TA"]
[PlyCount "73"]
[EventDate "2022.09.21"]
[EventType "tourn"]
[EventCountry "AZE"]
[SourceTitle "playchess.com"]
[Source "ChessBase"]
[SourceQuality "1"]
[TimeControl "900+10"]

{[%evp 22,73,22,20,18,28,22,29,29,16,22,29,38,27,29,10,39,0,8,14,8,0,24,20,19,18,20,18,24,21,26,0,42,48,29,18,62,0,0,0,18,-36,-35,-34,0,0,0,0,0,0,1102,1079,1027,1017]} 1. e4 {[%emt 0:00:01]} e5 {[%emt 0:00:01]} 2. Nf3 {[%emt 0:00:05]} Nc6 {[%emt 0:00:01]} 3. Bb5 {[%emt 0:00:02]} a6 {[%emt 0:00:01]} 4. Ba4 {[%emt 0:00:01]} Nf6 {[%emt 0:00:01]} 5. O-O {[%emt 0:00:03]} Be7 {[%emt 0:00:04]} 6. Re1 {[%emt 0:00:04]} b5 {[%emt 0:00:05]} 7. Bb3 {[%emt 0:00:02]} O-O {[%emt 0:00:03]} 8. h3 {[%emt 0:00:02]} Bb7 {[%emt 0:00:12]} 9. d3 {[%emt 0:00:03]} d5 {[%emt 0:00:29]} 10. exd5 {[%emt 0:00:02]} Nxd5 {[%emt 0:00:02]} 11. Nxe5 {[%emt 0:00:02]} Nxe5 {[%emt 0:00:02] is more profitable than 11...Nd4 at the moment.} 12. Rxe5 {[%emt 0:00:02]} Qd6 {[%emt 0:00:01] C88: Closed Ruy Lopez: Anti-Marshall Systems.} 13. Re1 {[%emt 0:00:46]} Rae8 {[%emt 0:00:32]} 14. Nd2 {[%emt 0:00:19]} c5 {[%emt 0:00:05] White has an edge.} 15. Ne4 {[%emt 0:00:36]} Qc6 {[%emt 0:00:04] ...c4 is the strong threat.} 16. c4 {[%emt 0:00:15]} Nb6 {[%emt 0:00:01] White must now prevent ...bxc4.} 17. f3 {[%emt 0:00:06]} Bh4 {[%emt 0:00:03] aiming for ...bxc4.} 18. Re2 {[%emt 0:00:02]} Qc7 {[%emt 0:01:14] Against Bf4} 19. Qf1 {[%emt 0:01:16]} bxc4 {[%emt 0:00:10]} 20. dxc4 {[%emt 0:00:04]} Bxe4 {[%emt 0:01:00] [#]} 21. fxe4 $146 {[%emt 0:00:04]} ({Predecessor:} 21. Rxe4 Rxe4 22. fxe4 Bf6 23. Rb1 Bd4+ 24. Kh1 Nd7 25. Bf4 Ne5 26. Qe1 Rb8 27. Rd1 a5 28. Qg3 f6 29. Be3 Bxe3 30. Qxe3 a4 31. Bxa4 Rxb2 32. Bb3 h6 {½-½ (32) Firnhaber,I (2469)-Laube,B (2397) ICCF email 2019}) 21... Bf6 {[%emt 0:00:02]} 22. Bf4 {[%emt 0:00:07]} Bd4+ {[%emt 0:00:15]} 23. Kh1 {[%emt 0:00:02]} Be5 {[%emt 0:00:52]} 24. Bxe5 {[%emt 0:00:02]} Qxe5 {[%emt 0:00:22]} 25. Rd1 {[%emt 0:00:24]} a5 {[%emt 0:05:34]} ({But not} 25... f5 26. Bc2 $16) 26. a4 {[%emt 0:00:09]} Re7 {[%emt 0:00:43]} 27. Qe1 {[%emt 0:00:04]} Ra8 {[%emt 0:00:20]} 28. Red2 {[%emt 0:01:31]} Qc7 {[%emt 0:00:47] Prevents Rd8+.} 29. e5 {[%emt 0:00:45]} (29. Rd6 $14 Nd7 30. Bc2) 29... Nd7 {[%emt 0:01:22]} 30. Bc2 {[%emt 0:00:21]} g6 {[%emt 0:01:03]} 31. Qe4 {[%emt 0:00:36]} (31. Be4 $11 Rae8 32. e6) 31... Rae8 $15 {[%emt 0:00:24]} 32. e6 {[%emt 0:00:11]} Nf6 {[%emt 0:01:03]} (32... f5 $5 {[%cal Rf5e4]} 33. Qd5 Nb6 $15) 33. exf7+ {[%emt 0:00:14]} Rxf7 {[%emt 0:00:05]} 34. Qh4 {[%emt 0:00:11]} Nh5 {[%emt 0:00:10]} 35. Rd6 {[%emt 0:01:31]} Re2 $2 {[%emt 0:00:29][%mdl 8192] [#]} (35... Rf1+ $11 36. Rxf1 Qxd6) 36. Bxg6 $1 $18 {[%emt 0:00:09][%mdl 512]} hxg6 {[%emt 0:03:05]} 37. Rxg6+ {[%emt 0:00:02] Weighted Error Value: White=0.12 (very precise) /Black=0.11 (very precise)} 1-0

[Event "Susha Chess Rapid 2022"]
[Site "Shusha"]
[Date "2022.09.23"]
[Round "9.4"]
[White "Mamedov, Rauf"]
[Black "Durarbayli, Vasif"]
[Result "1/2-1/2"]
[ECO "B22"]
[WhiteElo "2646"]
[BlackElo "2628"]
[Annotator "TA"]
[PlyCount "107"]
[EventDate "2022.09.21"]
[EventType "tourn"]
[EventCountry "AZE"]
[SourceTitle "playchess.com"]
[Source "ChessBase"]
[SourceQuality "1"]
[TimeControl "900+10"]

{[%evp 16,107,22,32,23,35,13,6,8,10,20,10,5,9,29,-40,-32,-49,-43,-47,-50,-32,-19,-19,-20,-20,-16,-36,-44,-46,-8,-5,0,-38,-39,-49,-50,-50,-43,-66,-30,-30,-4,-11,-4,-4,4,0,0,0,0,0,24,20,26,20,31,20,20,31,29,22,33,18,95,85,525,393,479,131,136,0,585,0,0,0,0,0,0,0,0,0,0,0,0,0,0,0,0,0,0,0,0,0]} 1. e4 {[%emt 0:00:01]} c5 {[%emt 0:00:00]} 2. c3 {[%emt 0:00:00]} Nf6 {[%emt 0:00:01]} 3. e5 {[%emt 0:00:01]} Nd5 {[%emt 0:00:01]} 4. Bc4 {[%emt 0:00:01]} Nb6 {[%emt 0:00:01]} 5. Bb3 {[%emt 0:00:01]} c4 {[%emt 0:00:02]} 6. Bc2 {[%emt 0:00:01]} Nc6 {[%emt 0:00:01]} 7. Nf3 {[%emt 0:00:47]} d5 {[%emt 0:00:01]} 8. exd6 {[%emt 0:00:18]} Qxd6 {[%emt 0:00:01]} 9. O-O {[%emt 0:00:39]} g6 {[%emt 0:00:01] B22: Sicilian: 2 c3.} 10. b3 {[%emt 0:00:27]} Bg7 {[%emt 0:00:11]} 11. Na3 {[%emt 0:00:04]} Be6 {[%emt 0:00:03]} 12. Qe2 {[%emt 0:00:31][%cal Rb3c4]} cxb3 {[%emt 0:00:03]} 13. axb3 {[%emt 0:00:01]} O-O {[%emt 0:00:04]} 14. Nc4 {[%emt 0:00:18] [#]} Qc7 $146 {[%emt 0:00:06]} ({Predecessor:} 14... Nxc4 15. bxc4 Ne5 16. Nxe5 Qxe5 17. Qxe5 Bxe5 18. Re1 Bd6 19. Be4 Bxc4 20. Bxb7 Rab8 {½-½ (36) Zvjaginsev,V (2655)-Nepomniachtchi,I (2714) Kazan 2014}) 15. Nxb6 {[%emt 0:01:05]} (15. Ng5 $11) 15... axb6 $15 {[%emt 0:00:41]} 16. Rxa8 {[%emt 0:04:22]} Rxa8 {[%emt 0:00:02]} 17. d4 {[%emt 0:00:03]} Bd5 {[%emt 0:02:15]} ({Reject} 17... Ra2 18. Qd1 $11) 18. Be3 {[%emt 0:01:24]} Ra2 {[%emt 0:00:23]} 19. Qd1 {[%emt 0:00:08]} Bxf3 {[%emt 0:03:52]} 20. gxf3 {[%emt 0:00:01]} e6 {[%emt 0:00:19]} 21. Bb1 {[%emt 0:01:28]} Ra5 {[%emt 0:00:13]} 22. f4 {[%emt 0:01:11]} Rh5 {[%emt 0:01:37]} (22... Bh6 $5 {[%cal Rh6f4]} 23. Qf3 Ra3 $15) 23. Be4 {[%emt 0:00:45]} b5 {[%emt 0:02:06]} 24. Qf3 {[%emt 0:01:29]} b4 {[%emt 0:00:39]} 25. Bxc6 {[%emt 0:00:08]} bxc6 {[%emt 0:00:35]} 26. cxb4 {[%emt 0:00:09]} Rd5 {[%emt 0:00:47]} 27. Rc1 {[%emt 0:01:18][%cal Ob4b5,Bf1c1,Bc1c4,Bc4c6][%mdl 32]} Qb6 {[%emt 0:01:06][%mdl 1024] Black has compensation.} 28. Rc4 {[%emt 0:00:04]} h5 {[%emt 0:01:09]} 29. Qe4 {[%emt 0:00:06]} Qa6 {[%emt 0:01:10]} 30. Kg2 {[%emt 0:00:08]} h4 {[%emt 0:00:25]} 31. h3 {[%emt 0:00:01][%cal Of4f5]} Bf8 {[%emt 0:00:21]} 32. Qc2 {[%emt 0:00:15]} Qb7 {[%emt 0:00:11]} 33. Rxc6 {[%emt 0:01:02]} Rd6 {[%emt 0:00:55]} 34. b5 {[%emt 0:00:05]} Qxb5 {[%emt 0:00:02]} 35. Rc8 {[%emt 0:00:46]} Qd5+ {[%emt 0:00:38]} 36. Kh2 {[%emt 0:00:03]} Rd8 {[%emt 0:00:01]} 37. Rxd8 {[%emt 0:00:27]} Qxd8 $11 {[%emt 0:00:01][%mdl 4096] Endgame KQB-KQB} 38. Qc6 {[%emt 0:00:15]} Kg7 {[%emt 0:01:03]} 39. Bd2 {[%emt 0:00:28]} Qb8 {[%emt 0:00:21]} (39... Kg8 $11 {keeps the balance.}) 40. d5 $16 {[%emt 0:00:10]} Qxb3 $2 {[%emt 0:00:10][%mdl 8192]} (40... Kg8 $16) 41. d6 $18 {[%emt 0:00:02]} Qa2 {[%emt 0:00:11]} 42. Qc3+ {[%emt 0:00:35]} (42. Be3 $18) 42... Kh7 $16 {[%emt 0:00:01] [#]} 43. d7 {[%emt 0:00:04]} (43. Be3 $1 $16 {Strongly threatening Qf6.} Qd5 44. Qf6 Qxd6 45. Bd4 (45. Qxf7+ Bg7 $11)) 43... Be7 {[%emt 0:00:00][%mdl 8192] [#] Against Qf6} (43... Qa7 $1 $11 {and Black is okay.}) 44. Qd4 $2 {[%emt 0:00:06]} (44. Qa5 $1 $18 {[%cal Ra5a2]} Qd5 45. Qxd5 exd5 46. Ba5) 44... Bd8 $1 $11 {[%emt 0:00:09] The position is equal.} 45. Bc3 {[%emt 0:00:43][%csl Gc3][%cal Rd4g7]} f6 {[%emt 0:00:03]} 46. Qc5 {[%emt 0:00:25]} Qd5 {[%emt 0:00:29]} 47. Qc8 {[%emt 0:00:01]} Qf3 {[%emt 0:00:17][%csl LRf2,LRf4]} 48. Bd4 {[%emt 0:00:28] Be3 is the strong threat.} Qxf4+ {[%emt 0:00:08]} 49. Kg1 {[%emt 0:00:01]} Qxd4 {[%emt 0:00:06]} 50. Qxd8 {[%emt 0:00:01] White wants to mate with Qe7+.} Qd1+ {[%emt 0:00:01]} 51. Kh2 {[%emt 0:00:01]} Qd6+ {[%emt 0:00:02]} 52. Kh1 {[%emt 0:00:01]} Qd1+ {[%emt 0:00:13]} 53. Kg2 {[%emt 0:00:01] Intending Qe7+ and mate.} Qd5+ {[%emt 0:00:02]} 54. Kg1 {[%emt 0:00:01] Weighted Error Value: White=0.30/Black=0.31} 1/2-1/2

[Event "Susha Chess Rapid 2022"]
[Site "Shusha"]
[Date "2022.09.23"]
[Round "9.5"]
[White "Guseinov, Gadir"]
[Black "Kasimdzhanov, Rustam"]
[Result "1/2-1/2"]
[ECO "C68"]
[WhiteElo "2661"]
[BlackElo "2670"]
[Annotator "TA"]
[PlyCount "69"]
[EventDate "2022.09.21"]
[EventType "tourn"]
[EventCountry "AZE"]
[SourceTitle "playchess.com"]
[Source "ChessBase"]
[SourceQuality "1"]
[TimeControl "900+10"]

{[%evp 25,69,14,22,24,26,26,22,18,27,7,24,20,22,21,20,16,20,17,15,17,18,18,25,8,3,6,6,6,6,6,7,1,7,7,7,6,6,7,7,7,7,7,7,7,40,17]} 1. e4 {[%emt 0:00:01]} e5 {[%emt 0:00:03]} 2. Nf3 {[%emt 0:00:02]} Nc6 {[%emt 0:00:01]} 3. Bb5 {[%emt 0:00:02]} a6 {[%emt 0:00:01]} 4. Bxc6 {[%emt 0:00:27]} dxc6 {[%emt 0:00:01][%cal Bd7c6,Bc6c5,Bc5c4][%mdl 32]} 5. O-O {[%emt 0:00:02]} f6 {[%emt 0:00:10]} 6. d4 {[%emt 0:00:02]} exd4 {[%emt 0:00:03]} 7. Nxd4 {[%emt 0:00:02]} c5 {[%emt 0:00:12]} 8. Nb3 {[%emt 0:00:08]} Qxd1 {[%emt 0:00:48]} 9. Rxd1 {[%emt 0:00:01]} Bg4 {[%emt 0:00:43]} 10. f3 {[%emt 0:00:01]} Be6 {[%emt 0:00:07]} 11. Bf4 {[%emt 0:01:37]} c4 {[%emt 0:00:23]} 12. Nd4 {[%emt 0:00:04]} O-O-O {[%emt 0:00:28]} 13. Nc3 {[%emt 0:00:02]} Bc5 {[%emt 0:01:05]} 14. Be3 {[%emt 0:00:03] C69: Ruy Lopez: Exchange Variation with 5 0-0 f6.} Bxd4 {[%emt 0:02:26]} 15. Bxd4 {[%emt 0:00:50]} Ne7 {[%emt 0:00:06]} 16. Kf2 {[%emt 0:00:22] The position is equal.} Nc6 {[%emt 0:00:15]} 17. Be3 {[%emt 0:00:02] [#]} b6 $146 {[%emt 0:01:17]} ({Predecessor:} 17... Rxd1 18. Rxd1 Rd8 19. Rxd8+ Kxd8 20. a3 Kd7 21. g4 b5 22. Bc5 g6 23. Ke3 Nd8 {½-½ (84) Womacka,M (2467)-Gregorova,Z (2164) Banska Stiavnica 2007}) 18. a3 {[%emt 0:00:13]} f5 {[%emt 0:00:30]} 19. Rxd8+ {[%emt 0:02:11]} Rxd8 {[%emt 0:00:08]} 20. Rd1 {[%emt 0:00:02]} Rxd1 {[%emt 0:02:52]} 21. Nxd1 {[%emt 0:00:02]} fxe4 {[%emt 0:00:01]} 22. fxe4 $11 {[%emt 0:00:01][%mdl 4096] Endgame KBN-KBN} Kd7 {[%emt 0:00:13]} 23. Kg3 {[%emt 0:01:03]} Bf7 {[%emt 0:01:15]} 24. Nc3 {[%emt 0:00:10]} b5 {[%emt 0:00:32]} 25. Bc5 {[%emt 0:00:05]} Nd8 {[%emt 0:00:03]} 26. Bd4 {[%emt 0:00:32]} Ne6 {[%emt 0:00:10]} 27. Be5 {[%emt 0:00:01]} Bh5 {[%emt 0:00:39]} 28. Kf2 {[%emt 0:00:11]} c6 {[%emt 0:00:52]} 29. h3 {[%emt 0:00:01]} a5 {[%emt 0:00:18]} 30. g4 {[%emt 0:00:01]} Bf7 {[%emt 0:01:52]} 31. Ke3 {[%emt 0:00:13]} h5 {[%emt 0:00:08]} 32. Ne2 {[%emt 0:00:12]} hxg4 {[%emt 0:00:05]} 33. hxg4 {[%emt 0:00:01]} c5 {[%emt 0:00:04]} 34. Nf4 {[%emt 0:02:52]} Nxf4 {[%emt 0:00:55]} 35. Kxf4 {A rather calm draw.  Weighted Error Value: White=0.03 (flawless) /Black=0.04 (flawless)} 1/2-1/2